{"text_format":"1","workbook":"xlsx","n_sheets":4,"sheets":["Input Sheet","Bill Form","Enface","100"],"not_rendered":{"charts":0,"images":0,"macros":1,"external_links":0,"defined_names":0,"comments":0,"pivot_tables":0},"unopened":[],"bounds":{"document_bytes":16777216,"sheet_cells":100000,"rows_first":2000,"rows_last":500,"rows_between":2000,"halvings":0,"cell_chars":16384,"cell_head_chars":4096},"cells_cut":0,"cells_raw":0,"read":"whole","date_system":"1900"}

{"sheet":"Input Sheet","index":0,"n_rows":14,"n_cols":2,"rows_kept":14,"cut":false,"hidden":false,"merged":[]}
["DP Code","220202109AA4917"]
["Head","2202-General Education                            \n02-Secondary Education                            \n109-Govt.High.Schools - I Non Plan - AA    01- Salaries                                      \n"]
["Amount",5000]
["Proccedings No","R No.    156 /2014 Proceeding of the HM GHS, Athipakkam  Dt : 12-12-2014"]
["Particular","Festival Advance of GHS, Athipakkam Staffs for Pongal  Fall on 14-01-2015"]
["DO Code","SBG39"]
["DDO Name","HEADMASTER, GHS, ATHIPAKKAM"]
["Treasury Code","16G"]
["Bill No.","34/2014-15"]
["Date","2014-12-15"]
[]
["Allotment",10000]
["Expense",5000]
["Balance",{"$f":"B12-B13","v":5000}]

{"sheet":"Bill Form","index":1,"n_rows":43,"n_cols":12,"rows_kept":43,"cut":false,"hidden":false,"merged":[[5,0,28,0],[6,4,6,6],[7,4,7,6],[8,4,8,6],[6,7,9,12],[5,10,5,12],[41,0,41,12],[42,0,42,12],[0,0,0,9],[1,0,1,9],[2,0,2,9],[3,0,3,9],[4,0,4,9],[12,11,14,12],[31,1,31,12],[32,1,32,12],[35,10,35,11],[36,10,36,11],[37,10,37,11],[9,4,9,6],[10,1,10,12],[6,1,9,3]]}
["Payable at  Sub Treasury, Vandavsi",null,null,null,null,null,null,null,null,null,{"$f":" \"Treasury /PAO /Sub Treasury : \" &'Input Sheet'!B8","v":"Treasury /PAO /Sub Treasury : 16G"}]
["T.N.T.C FORM 40(a)",null,null,null,null,null,null,null,null,null,{"$f":"\" DO Code : \" & 'Input Sheet'!B6","v":" DO Code : SBG39"}]
["[See Subsidiary Rules 2(f) and 18(a) under Treasury Rules 16]"]
["BILL FOR MISCELLANEOUS PAYMENTS"]
[{"$f":" \"Month  \"  & TEXT(NOW(),\"mmm\")& \"-\" & YEAR(TODAY())","v":"Month  Aug-2015"}]
[{"$f":"\"Claim Under Rs. \" & 'Input Sheet'!B3+1&\"/-\"& \"Rupees \" &spellnumber('Input Sheet'!B3+1)& \" Only\"","v":"Claim Under Rs. 5001/-Rupees Five Thousand One Only"},null,null,null,null,null,null,null,null,"DP Code ",{"$f":"'Input Sheet'!B1","v":"220202109AA4917"}]
[null,"Head Service Chargable",null,null,"Major Head",null,null,{"$f":"'Input Sheet'!B2","v":"2202-General Education                            \n02-Secondary Education                            \n109-Govt.High.Schools - I Non Plan - AA    01- Salaries                                      \n"}]
[null,null,null,null,"Minor Head"]
[null,null,null,null,"Head Service Chargable"]
[null,null,null,null,"Sub-Head Appropriation"]
[null,{"$f":"\"Voucher No.\" & \"                                 \"& \" of\"& \"                                    \" &\"List of Payments  Received this \" &TEXT(NOW(),\"mmm\")& \"-\" & YEAR(TODAY()) & \"  of  Rs.\" & 'Input Sheet'!B3 & \"   Rupees \" & spellnumber('Input Sheet'!B3) & \" Only  being the amount payable of \" &'Input Sheet'!B5 & \"as per the proceedings of \" &'Input Sheet'!B4","v":"Voucher No.                                  of                                    List of Payments  Received this Aug-2015  of  Rs.5000   Rupees Five Thousand  Only  being the amount payable of Festival Advance of GHS, Athipakkam Staffs for Pongal  Fall on 14-01-2015as per the proceedings of R No.    156 /2014 Proceeding of the HM GHS, Athipakkam  Dt : 12-12-2014"}]
[]
[null,null,null,null,null,null,null,null,null,null,null,"Stamp if the amount exceeds Rs 500"]
[]
[]
[]
[]
[null,null,null,null,null,null,null,null,null,null,null,"Claiment’s Signature"]
[]
[null,"Contents Received Please Pay to ECS",null,null,null,null,null,{"$f":"\"Passed for Payment Rs. \" &'Input Sheet'!B3 & \"/-\"","v":"Passed for Payment Rs. 5000/-"}]
[null,null,null,null,null,null,null,{"$f":"\"Rupees \" & spellnumber('Input Sheet'!B3) & \" Only\"","v":"Rupees Five Thousand  Only"}]
[]
[null,null,null,null,null,null,null,"Designation Officer"]
[null,null,null,null,null,null,null,"Examined and entered"]
[null,null,null,null,null,null,null,null,null,null,"Accountant"]
[]
[null,null,null,null,null,null,null,null,null,null,"Officer in charge of the Treasury"]
[]
[]
[]
["Certified that the amount claimed in the bill was not drawn and paid before"]
[1,"Certified that the claim made by me is accordance with all Government Rules and orders pertinent here to and that all the facts   satisfied  in this claim are true to the best of my knowledge and belief"]
[2,"I am aware that I am fully responsible for any error in respect of facts, rules, Government orders there of as applicable to this bill"]
[]
[]
[null,null,null,"  Allotment for 2014-15 Expenditure including this bill Balance",null,null,null,null,null,"Allotment",{"$f":"'Input Sheet'!B12","v":10000}]
[null,null,null,null,null,null,null,null,null,"Expense",{"$f":"'Input Sheet'!B13","v":5000}]
[null,null,null,null,null,null,null,null,null,"Balance",{"$f":"K36-K37","v":5000}]
[]
[]
[]
["Pay Order"]
["Pay  ...........………..…….. (Rupees……………..................................................................................................……………………………………………………..) only ECS"]

{"sheet":"Enface","index":2,"n_rows":6,"n_cols":8,"rows_kept":6,"cut":false,"hidden":false,"merged":[[4,6,4,7],[5,6,5,7],[0,0,0,7],[2,1,2,2],[2,3,2,5],[2,6,2,7],[3,1,3,2],[3,3,3,5],[3,6,3,7],[4,4,4,5],[5,4,5,5]]}
["Enfacement Slip"]
[{"$f":"\"Name of the DDO : \"  & 'Input Sheet'!B7","v":"Name of the DDO : HEADMASTER, GHS, ATHIPAKKAM"},null,null,null,null,null,"DO Code :",{"$f":"'Input Sheet'!B6","v":"SBG39"}]
["Sno ","Head of Account",null,"DP Code",null,null,"Amount"]
[1,{"$f":"'Input Sheet'!B2","v":"2202-General Education                            \n02-Secondary Education                            \n109-Govt.High.Schools - I Non Plan - AA    01- Salaries                                      \n"},null,{"$f":"'Input Sheet'!B1","v":"220202109AA4917"},null,null,{"$f":"'Input Sheet'!B3","v":5000}]
[null,null,null,null,"Deduction",null,0]
[null,null,null,null,"Net",null,{"$f":"G4-G5","v":5000}]

{"sheet":"100","index":3,"n_rows":17,"n_cols":7,"rows_kept":17,"cut":false,"hidden":false,"merged":[[13,4,13,7],[14,4,14,7],[15,0,15,7],[16,0,16,1],[16,6,16,7],[6,0,9,3],[6,4,9,7],[10,0,10,3],[10,4,10,7],[11,0,11,3],[11,4,12,7],[5,0,5,7],[0,0,0,7],[1,0,1,7],[2,0,2,7],[3,0,3,7],[4,0,4,7]]}
[{"$f":" \"g£oaš v©   \" & 'Input Sheet'!B9 & \" ehŸ \" &'Input Sheet'!B10","v":"g£oaš v©   34/2014-15 ehŸ 41988"}]
["rh®ãiy¡ fUñy«, tªjthÁ"]
["jäœehL fUñy éÂ bjhF¥ò  got« v© 100"]
["(16-M« fUñy éÂæ‹ 2(11) Jiz éÂia¡ fh©f)"]
["gz« tH§F« mYty®fŸ fUñy§fëš gz« nfhU« nfhç¡iffSl‹ Ïiz¤J bršy nt©oa Ó£L"]
["(fUñy mYtyuhš _y¢Ó£^ ÂU¥Ã mD¥g¥gLjš nt©L«"]
["bgUªjiy¥ò                                                                 fz¡F ÁW jiy¥ò (m) c£jiy¥ò                               ãÂ xJ¡Ñ£o‹ c£jiy¥ò                            Kªija bryÎ                                                      ehsJ tiuæYkhd bryÎ",null,null,null,{"$f":"Enface!B4 &   'Input Sheet'!B1","v":"2202-General Education                            \n02-Secondary Education                            \n109-Govt.High.Schools - I Non Plan - AA    01- Salaries                                      \n220202109AA4917"}]
[]
[]
[]
["bgWe®                                                                fUñy mYty®, ÂUt©zhkiy",null,null,null,"fUñy¤jhš ãu¥g¥gl nt©oaJ                                     bgWe® "]
["gzkh¡Ftj‰fhf, g£oæ‹ fUñy¢ bryÎ¢ Ó£o‹ v©izÍ« ehëidÍ« bjçé¡fÎ«",null,null,null,"Ñœ g¡f¤Âš F¿¥Ã£lthW................. v‹w v©â£l ehë£l fUñy¢ bryÎ¢ Ó£L ÂU¥Ã mD¥g¥gL»wJ"]
[]
["ifbah¥g« ",null,null,null,"ifbah¥g«"]
["gz« vL¡F« mYty®",null,null,null,"fUñy mYty®"]
[{"$f":"'Input Sheet'!B5","v":"Festival Advance of GHS, Athipakkam Staffs for Pongal  Fall on 14-01-2015"}]
["bkh¤j« ",null,{"$f":"Enface!G4","v":5000},"Ão¤j«",{"$f":"Enface!G5","v":0},"ãfu«",{"$f":"Enface!G6","v":5000}]